bitfinex-derivatives/quotes_SOLF0:USTF0_20251125
["timestamp","ask_amount","ask_price","bid_price","bid_amount"]
[1764074899099,2.28,136.26,136.13,3.0]
[1764074899303,2.28,136.26,136.15,3.0]
[1764074899498,2.33161222,136.21,136.18,0.04797205]
[1764074899700,2.32932558,136.21,136.18,0.05063615]
[1764074899998,2.28,136.2,136.12,3.0]
[1764074900198,8.8909,136.19,136.12,3.0]
[1764074901201,0.05379515,136.17,136.14,0.0542747]
[1764074901900,0.05379515,136.17,136.14,3.0542747]
[1764074903702,2.33379515,136.17,136.14,0.0542747]
[1764074905502,2.28,136.16,136.14,0.0542747]
[1764074906207,8.8923,136.16,136.14,0.0542747]
[1764074906408,2.28,136.15,136.14,0.0542747]
[1764074906601,4.40681145,136.15,136.14,0.0542747]
[1764074907105,4.40681145,136.15,136.07,2.12681145]
[1764074907106,2.23,136.13,136.07,5.12681145]
[1764074907292,4.35681145,136.13,136.07,5.12681145]
[1764074907898,0.05505568,136.11,136.09,0.04883063]
[1764074909009,0.05505568,136.11,136.09,3.04883063]
[1764074911106,0.05505568,136.11,136.09,0.04883063]
[1764074911107,2.28505568,136.11,136.09,0.04883063]
[1764074911500,2.28505568,136.11,136.03,3.0]
[1764074911501,2.23,136.1,136.03,3.0]
[1764074911914,8.8463,136.08,136.03,3.0]
[1764074912213,2.23,136.11,136.03,3.0]
[1764074912396,0.05211672,136.08,136.06,0.05489485]
[1764074912602,0.05211672,136.08,136.06,3.05489485]
[1764074912998,0.05211672,136.08,136.06,65.05489485]
[1764074914213,0.05211672,136.08,136.07,3.0]
[1764074914408,2.23,136.14,136.07,3.0]
[1764074915010,8.8921,136.17,136.1,6.6149]
[1764074915206,8.8921,136.17,136.11,3.0]
[1764074915207,2.28,136.17,136.11,3.0]
[1764074915404,0.05255907,136.15,136.13,0.04893934]
[1764074915603,2.33255907,136.15,136.13,0.04893934]
[1764074917206,8.94525907,136.15,136.13,0.04893934]
[1764074917410,2.28,136.14,136.13,0.04893934]
[1764074918507,6.6147,136.11,136.05,3.0]
[1764074918905,2.23,136.12,136.05,3.0]
[1764074919410,2.23,136.12,136.03,27.54689684]
[1764074919411,0.05449687,136.1,136.07,3.05257551]
[1764074919611,2.28449687,136.1,136.07,0.05257551]
[1764074920112,8.846,136.09,136.07,0.05257551]
[1764074921003,2.23,136.08,136.07,0.05257551]
[1764074923211,0.05449687,136.1,136.07,3.05257551]
[1764074923915,0.05449687,136.1,136.07,65.05257551]
[1764074924114,0.05449687,136.1,136.08,3.0]
[1764074926514,8.846,136.09,136.07,0.05257551]
[1764074927815,6.616,136.09,136.07,0.05257551]
[1764074928410,6.616,136.09,136.07,3.10257551]
[1764074928813,8.846,136.09,136.07,0.05257551]
[1764074929420,6.616,136.09,136.07,0.05257551]
[1764074929922,6.616,136.09,136.08,3.05]
[1764074930122,0.05449687,136.1,136.08,3.05]
[1764074931323,6.66999687,136.1,136.07,3.10257551]
[1764074931922,6.6159,136.09,136.07,3.10257551]
[1764074932816,6.6159,136.09,136.07,0.05257551]
[1764074935937,2.23,136.08,136.07,0.05257551]
[1764074937321,8.8459,136.09,136.07,0.05257551]
[1764074937627,2.23,136.09,136.07,0.05257551]
[1764074938330,8.8464,136.08,136.07,0.05257551]
[1764074940220,6.6182,136.05,136.01,24.99851112]
[1764074940432,2.23,136.05,136.01,22.04851112]
[1764074940625,2.23,136.05,136.01,2.95]
[1764074940824,8.8481,136.05,136.01,2.95]
[1764074941132,2.23,136.05,135.98,2.95]
[1764074941330,6.66936304,136.03,136.0,0.05412881]
[1764074941831,2.28026304,136.03,136.0,0.05412881]
[1764074942129,2.23,136.01,136.0,0.05412881]
[1764074942326,2.17,135.99,135.95,21.8949755]
[1764074942526,8.7918,135.97,135.92,2.95]
[1764074942731,2.17,135.97,135.92,2.95]
[1764074943041,102.9628,136.03,135.92,2.95]
[1764074943042,2.17,136.01,135.92,2.95]
[1764074943331,0.04857012,135.98,135.95,0.04730211]
[1764074943828,0.04857012,135.98,135.95,2.99730211]
[1764074944932,6.66997012,135.98,135.95,2.99730211]
[1764074945625,8.83997012,135.98,135.95,0.04730211]
[1764074947028,0.04857012,135.98,135.95,2.99730211]
[1764074949332,0.04857012,135.98,135.95,28.31730211]
[1764074949524,0.04857012,135.98,135.96,2.95]
[1764074952523,0.04857012,135.98,135.95,0.04730211]
[1764074952723,2.21857012,135.98,135.95,0.04730211]
[1764074953635,2.17,135.97,135.95,0.04730211]
[1764074954737,0.04857012,135.98,135.95,2.99730211]
[1764074955435,0.04857012,135.98,135.95,0.04730211]
[1764074955436,2.21857012,135.98,135.95,0.04730211]
[1764074956739,8.83987012,135.98,135.95,0.04730211]
[1764074957341,6.6218,135.97,135.95,0.04730211]
[1764074957730,2.21857012,135.98,135.95,0.04730211]
[1764074957931,0.04857012,135.98,135.95,2.96730211]
[1764074959039,0.04857012,135.98,135.97,2.92]
[1764074961037,0.04857012,135.98,135.97,28.24]
[1764074961436,0.04857012,135.98,135.97,2.92]
[1764074962640,2.17,136.09,135.99,2.92]
[1764074963034,2.17,136.07,136.01,2.92]
[1764074963239,2.17,136.07,135.98,2.92]
[1764074963437,2.17,136.07,135.99,25.32]
[1764074963632,102.918,136.09,135.99,25.32]
[1764074963633,2.22387627,136.04,136.02,0.05105742]
[1764074963842,2.2172408,136.04,136.02,0.05105742]
[1764074964049,0.0472408,136.04,136.02,0.05105742]
[1764074964236,0.0472408,136.04,136.02,2.97105742]
[1764074965747,0.0472408,136.04,136.03,2.92]
[1764074965950,8.7851,136.11,136.04,2.92]
[1764074966249,2.17,136.11,136.05,2.92]
[1764074966452,8.7851,136.11,136.05,2.92]
[1764074966844,2.17,136.11,136.05,2.92]
[1764074967047,0.05643684,136.09,136.07,0.05308429]
[1764074967244,2.22643684,136.09,136.07,0.05308429]
[1764074967445,0.05643684,136.09,136.07,0.05308429]
[1764074968051,0.05643684,136.09,136.07,2.97308429]
[1764074968552,0.05643684,136.09,136.07,0.05308429]
[1764074968553,2.22643684,136.09,136.07,0.05308429]
[1764074969451,8.84253684,136.09,136.07,0.05308429]
[1764074969753,2.17,136.08,136.07,0.05308429]
[1764074969952,0.05643684,136.09,136.07,2.97308429]
[1764074970249,0.05643684,136.09,136.07,0.05308429]
[1764074970650,0.05643684,136.09,136.07,2.97308429]
[1764074971647,102.8582,136.17,136.08,9.5362]
[1764074971648,6.6133,136.15,136.08,9.5362]
[1764074971849,2.17,136.14,136.04,2.92]
[1764074972054,2.17,136.14,136.06,28.24]
[1764074972244,8.7841,136.13,136.06,28.24]
[1764074972443,2.17,136.13,136.06,28.24]
[1764074972647,2.22020396,136.11,136.08,0.04877872]
[1764074972952,8.83530396,136.11,136.08,0.04877872]
[1764074973155,2.17,136.1,136.08,0.04877872]
[1764074973549,6.66530396,136.11,136.08,0.04877872]
[1764074974151,8.83530396,136.11,136.08,0.04877872]
[1764074976861,2.17,136.1,136.08,0.04877872]
[1764074977156,8.7855,136.1,136.08,0.04877872]
[1764074978356,2.17,136.09,136.08,0.04877872]
[1764074981371,2.17,136.09,136.03,2.92]
[1764074981560,2.17,136.1,136.03,2.92]
[1764074982460,0.04818488,136.08,136.06,2.92]
[1764074983865,0.04818488,136.08,136.05,0.05125379]
[1764074984065,2.21818488,136.08,136.05,0.05125379]
[1764074984270,0.04818488,136.08,136.05,2.97125379]
[1764074995079,0.04818488,136.08,136.05,9.58905379]
[1764074995282,0.04818488,136.08,136.06,3.14]
[1764074998984,8.83458488,136.08,136.05,0.05125379]
[1764074999180,8.83458488,136.08,136.05,3.01125379]
[1764074999480,6.66458488,136.08,136.05,3.01125379]
[1764075000581,0.04818488,136.08,136.05,3.01125379]
[1764075000782,2.21818488,136.08,136.05,0.05125379]
[1764075000977,2.21818488,136.08,136.0,22.15878588]
[1764075000978,8.789,136.03,136.0,22.15878588]
[1764075001171,8.789,136.03,135.99,2.96]
[1764075001484,4.29817813,136.05,135.99,2.96]
[1764075001780,2.17,136.04,135.99,2.96]
[1764075002083,2.21798805,136.03,136.0,0.04918829]
[1764075003277,2.17,136.01,136.0,0.04918829]
[1764075003972,8.83688805,136.03,136.0,0.04918829]
[1764075004592,8.83688805,136.03,136.0,3.00918829]
[1764075004593,6.66688805,136.03,136.0,3.00918829]
[1764075007386,0.04798805,136.03,136.0,3.00918829]
[1764075008491,2.21798805,136.03,136.0,0.04918829]
[1764075009890,2.17,136.01,136.0,0.04918829]
[1764075010489,2.17,136.01,135.94,2.96]
[1764075010692,2.12,135.97,135.91,2.96]
[1764075010899,2.12,135.97,135.91,25.44407798]
[1764075011096,2.12,135.95,135.91,25.44407798]
[1764075011589,2.16879368,135.94,135.92,0.05444517]
[1764075011997,0.04879368,135.94,135.92,0.05444517]
[1764075012193,0.04879368,135.94,135.92,3.01444517]
[1764075012697,0.04879368,135.94,135.92,65.01444517]
[1764075012990,2.16879368,135.94,135.92,0.05444517]
[1764075013590,8.79209368,135.94,135.92,0.05444517]
[1764075013891,0.04879368,135.94,135.92,3.01444517]
[1764075014093,0.04879368,135.94,135.92,0.05444517]
[1764075014292,0.04879368,135.94,135.92,3.01444517]
[1764075015391,0.04879368,135.94,135.92,0.05444517]
[1764075015594,2.16879368,135.94,135.92,0.05444517]
[1764075016201,0.04879368,135.94,135.92,0.05444517]
[1764075016397,0.04879368,135.94,135.92,3.01444517]
[1764075017300,0.04879368,135.94,135.92,0.05444517]
[1764075017501,2.17879368,135.94,135.92,0.05444517]
[1764075018004,6.67209368,135.94,135.92,3.08444517]
[1764075018796,0.04879368,135.94,135.92,3.08444517]
[1764075020002,2.13,135.93,135.92,0.05444517]
[1764075020602,2.13,135.93,135.88,3.03]
[1764075020801,2.17697181,135.94,135.84,6.43839003]
[1764075020802,2.13,135.91,135.84,6.43839003]
[1764075021011,2.13,135.91,135.85,3.03]
[1764075021197,6.6252,135.9,135.85,3.03]
[1764075021503,2.12817813,135.92,135.85,3.03]
[1764075021698,0.05534708,135.9,135.88,3.03]
[1764075023502,2.18534708,135.9,135.87,65.07666829]
[1764075024099,2.18534708,135.9,135.87,62.04666829]
[1764075024299,8.7558,135.89,135.87,0.04666829]
[1764075024599,2.13,135.88,135.87,0.04666829]
[1764075025508,2.13,135.89,135.87,0.04666829]
[1764075025814,2.18534708,135.9,135.87,3.07666829]
[1764075026397,2.18534708,135.9,135.87,0.04666829]
[1764075028500,2.18534708,135.9,135.87,3.07666829]
[1764075028699,2.18534708,135.9,135.87,0.04666829]
[1764075029109,8.81054708,135.9,135.87,0.04666829]
[1764075029309,2.13,135.89,135.87,0.04666829]
[1764075029607,4.25817813,135.89,135.87,0.04666829]
[1764075029807,2.13,135.88,135.87,0.04666829]
[1764075031306,2.18534708,135.9,135.87,3.07666829]
[1764075031512,2.18534708,135.9,135.87,0.04666829]
[1764075031911,2.18534708,135.9,135.87,3.07666829]
[1764075032402,2.18534708,135.9,135.87,0.04666829]
[1764075033411,2.13,135.89,135.87,0.04666829]
[1764075034299,8.7557,135.89,135.87,0.04666829]
[1764075034503,2.13,135.88,135.87,0.04666829]
[1764075035114,2.13,135.86,135.84,22.48403222]
[1764075035315,2.13,135.86,135.83,3.03]
[1764075035512,8.7567,135.87,135.83,3.03]
[1764075035907,6.6272,135.86,135.84,3.03]
[1764075036104,0.04972168,135.86,135.84,3.07754391]
[1764075036906,0.04972168,135.86,135.85,5.15817813]
[1764075037609,2.13,135.91,135.86,3.03]
[1764075038412,8.7552,135.9,135.86,3.03]
[1764075038607,0.05617954,135.89,135.87,3.08149314]
[1764075040120,2.18617954,135.89,135.87,0.05149314]
[1764075040323,6.68187954,135.89,135.87,3.08149314]
[1764075041216,8.81187954,135.89,135.87,0.05149314]
[1764075041420,0.05617954,135.89,135.87,3.08149314]
[1764075045124,2.18617954,135.89,135.87,3.08149314]
[1764075045324,2.18617954,135.89,135.87,0.05149314]
[1764075046735,8.81227954,135.89,135.87,0.05149314]
[1764075046923,2.13,135.88,135.87,0.05149314]
[1764075047330,0.05617954,135.89,135.87,0.05149314]
[1764075047531,0.05617954,135.89,135.88,3.07]
[1764075050834,4.25817813,135.96,135.88,3.07]
[1764075051043,2.13,135.96,135.91,3.07]
[1764075051937,0.04728447,135.95,135.93,3.07]
[1764075052144,0.04728447,135.95,135.92,0.05350124]
[1764075052145,2.13,136.02,135.95,3.07]
[1764075052836,8.7904,136.0,135.95,3.07]
[1764075053134,0.04742217,135.99,135.96,3.12152994]
[1764075053339,8.83832217,135.99,135.96,0.05152994]
[1764075053536,2.17,135.98,135.96,0.05152994]
[1764075056340,2.17,135.97,135.96,0.05152994]
[1764075059843,2.21742217,135.99,135.96,0.05152994]
[1764075060243,2.21742217,135.99,135.96,3.15152994]
[1764075060434,8.83832217,135.99,135.96,3.15152994]
[1764075060631,105.169,135.98,135.93,21.62109422]
[1764075060835,2.17,135.97,135.87,106.40548287]
[1764075061037,2.17,135.97,135.88,3.1]
[1764075061743,0.05483323,135.94,135.91,3.14885193]
[1764075062143,2.22483323,135.94,135.91,3.14885193]
[1764075062344,2.17,135.93,135.91,0.04885193]
[1764075063143,0.05483323,135.94,135.91,3.14885193]
[1764075063646,2.17,135.99,135.92,3.1]
[1764075063844,27.51,136.02,135.94,3.1]
[1764075064046,2.17,136.05,135.97,3.1]
[1764075064255,6.6194,136.02,135.97,3.1]
[1764075064448,2.17,136.05,135.97,3.1]
[1764075064751,0.05059271,136.02,136.01,3.1]
[1764075065244,105.0727,136.11,136.02,3.1]
[1764075065637,2.17,136.11,136.02,3.1]
[1764075066046,0.04651091,136.08,136.05,3.15148986]
[1764075067948,2.21651091,136.08,136.05,0.05148986]
[1764075068449,2.17,136.05,135.98,65.1]
[1764075069448,0.04640045,136.03,136.0,0.05025586]
[1764075069640,0.04640045,136.03,136.0,3.15025586]
[1764075080149,2.21640045,136.03,136.0,0.05025586]
[1764075080351,0.04640045,136.03,136.0,2.95025586]
[1764075082552,2.21640045,136.03,136.0,0.05025586]
[1764075082745,2.21640045,136.03,136.0,2.95025586]
[1764075083145,8.83530045,136.03,136.0,2.95025586]
[1764075084153,2.21640045,136.03,136.0,2.95025586]
[1764075087157,8.83530045,136.03,136.0,2.95025586]
[1764075088864,2.17,136.01,136.0,0.05025586]
[1764075089358,6.6193,136.02,136.0,0.05025586]
[1764075089560,8.7893,136.02,136.0,0.05025586]
[1764075091163,2.17,136.01,136.0,0.05025586]
[1764075091364,0.04640045,136.03,136.0,2.95025586]
[1764075093268,6.66530045,136.03,136.0,2.95025586]
[1764075097469,6.6194,136.02,136.0,2.95025586]
[1764075098566,8.7898,136.01,136.0,0.05025586]
[1764075099566,6.6198,136.01,136.0,0.05025586]
[1764075100470,8.7898,136.01,136.0,0.05025586]
[1764075101262,0.04640045,136.03,136.0,2.95025586]
[1764075101963,2.17,136.02,136.0,0.05025586]
[1764075102968,8.7898,136.01,136.0,0.05025586]
[1764075105276,8.7417,135.97,135.96,22.31246932]
[1764075105470,8.7417,135.97,135.92,2.9]
[1764075106271,0.04640923,135.96,135.93,2.94913437]
[1764075108271,0.04640923,135.96,135.94,64.9]
[1764075108973,0.04640923,135.96,135.95,2.9]
[1764075118883,6.6212,135.99,135.95,2.9]
[1764075119778,6.67568301,135.98,135.97,3.17]
[1764075119974,6.6213,135.98,135.97,3.17]
[1764075120878,0.05465373,135.99,135.97,3.17]
[1764075121984,6.67545373,135.99,135.98,65.17]
[1764075122571,6.67545373,135.99,135.98,62.0]
[1764075122975,6.67545373,135.99,135.97,3.17]
[1764075123579,8.7813,135.98,135.96,0.0535894]
[1764075123887,2.16,135.98,135.96,0.0535894]
[1764075124586,2.21465373,135.99,135.96,0.0535894]
[1764075124780,6.6213,135.98,135.96,3.2235894]
[1764075125483,6.67545373,135.99,135.96,3.2235894]
[1764075126590,6.6213,135.98,135.96,3.2235894]
[1764075126786,2.16,135.98,135.96,0.0535894]
[1764075127589,8.7817,135.97,135.96,0.0535894]
[1764075128679,0.05465373,135.99,135.96,3.2235894]
[1764075129286,6.67545373,135.99,135.96,3.2235894]
[1764075129486,0.05465373,135.99,135.96,3.2235894]
[1764075129889,0.05465373,135.99,135.97,62.0]
[1764075130195,0.05465373,135.99,135.98,3.17]
[1764075130898,6.67545373,135.99,135.98,3.17]
[1764075131289,2.16,135.98,135.96,0.0535894]
[1764075131486,8.83545373,135.99,135.96,3.2235894]
[1764075131689,0.05465373,135.99,135.96,3.2235894]
[1764075132695,0.05465373,135.99,135.97,3.17]
[1764075133194,6.67545373,135.99,135.97,3.17]
[1764075134195,6.67545373,135.99,135.97,65.17]
[1764075134895,8.83545373,135.99,135.97,62.0]
[1764075135291,6.67545373,135.99,135.97,3.17]
[1764075136797,8.83545373,135.99,135.97,3.17]
[1764075136996,8.83545373,135.99,135.96,0.0535894]
[1764075137195,8.7814,135.98,135.96,0.0535894]
[1764075137787,6.6214,135.98,135.96,3.0135894]
[1764075137988,0.05465373,135.99,135.96,3.0135894]
[1764075138591,2.21465373,135.99,135.96,3.0135894]
[1764075138896,6.6213,135.98,135.96,3.0135894]
[1764075139795,6.6217,135.97,135.96,3.0135894]
[1764075140400,6.6217,135.97,135.96,0.0535894]
[1764075140989,6.6217,135.97,135.96,3.0135894]
[1764075141999,2.21465373,135.99,135.96,3.0135894]
[1764075143295,6.6213,135.98,135.96,3.0135894]
[1764075146606,6.6217,135.97,135.96,3.0135894]
[1764075146801,8.7817,135.97,135.96,0.0535894]
[1764075154601,2.11,135.93,135.9,22.4592504]
[1764075154821,2.11,135.93,135.9,2.96]
[1764075155616,2.16378051,135.93,135.9,3.01470613]
[1764075155914,8.7347,135.91,135.9,0.05470613]
[1764075158111,6.6247,135.91,135.9,0.05470613]
[1764075158314,0.05378051,135.93,135.9,3.01470613]
[1764075158521,0.05378051,135.93,135.92,2.96]
[1764075162021,6.6242,135.92,135.91,2.96]
[1764075164213,0.05378051,135.93,135.91,2.96]
[1764075169025,2.11,135.99,135.92,3.09]
[1764075169221,2.11,135.99,135.94,3.09]
[1764075170322,6.6223,135.96,135.95,3.13954358]
[1764075170826,8.78541537,135.98,135.95,3.13954358]
[1764075171130,0.05371537,135.98,135.95,3.13954358]
[1764075171323,0.05371537,135.98,135.96,3.09]
[1764075174024,2.11,136.04,135.98,3.09]
[1764075174330,6.618,136.05,136.0,3.09]
[1764075175033,0.05366311,136.04,136.02,3.09]
[1764075175232,2.16366311,136.04,136.01,0.05275594]
[1764075175725,6.6189,136.03,136.01,62.05275594]
[1764075175929,8.7289,136.03,136.01,62.05275594]
[1764075176330,8.7289,136.03,136.01,0.05275594]
[1764075177041,2.11,136.03,136.01,0.05275594]
[1764075177225,0.05366311,136.04,136.01,3.14275594]
[1764075178835,2.16366311,136.04,136.01,3.14275594]
[1764075179226,0.05366311,136.04,136.02,2.96]
[1764075180130,8.78206311,136.04,136.01,0.05275594]
[1764075180338,2.16366311,136.04,136.01,0.05275594]
[1764075180729,0.05366311,136.04,136.01,3.01275594]
[1764075181432,6.67206311,136.04,136.01,3.01275594]
[1764075181832,8.78206311,136.04,136.01,3.01275594]
[1764075182322,6.6189,136.03,136.01,3.01275594]
[1764075184739,8.7289,136.03,136.01,0.05275594]
[1764075184935,2.11,136.09,136.01,3.01275594]
[1764075185126,2.11,136.09,136.02,2.96]
[1764075185332,2.11,136.09,136.03,2.96]
[1764075185638,6.6174,136.06,136.03,2.96]
[1764075185947,6.66613329,136.06,136.03,3.00853542]
[1764075186336,0.04873329,136.06,136.03,3.00853542]
[1764075187042,6.66613329,136.06,136.03,3.00853542]
[1764075187736,6.66613329,136.06,136.04,64.96]
[1764075187938,6.66613329,136.06,136.05,2.96]
[1764075192639,6.66613329,136.06,136.04,2.96]
[1764075194049,6.66613329,136.06,136.03,22.00602806]
[1764075194050,2.11,136.05,136.03,0.04853542]
[1764075194445,2.11,136.02,135.98,28.26]
[1764075194646,2.11,136.02,135.99,2.96]
[1764075194949,2.11,136.03,135.99,2.96]
[1764075195453,0.04959439,136.02,136.0,0.04997394]
[1764075196041,2.15959439,136.02,136.0,0.04997394]
[1764075196350,6.6198,136.01,136.0,0.04997394]
[1764075199847,8.7298,136.01,136.0,0.04997394]
[1764075200767,8.7298,136.01,135.96,2.98]
[1764075200768,8.7317,135.97,135.93,2.98]
[1764075201054,6.6217,135.97,135.94,2.98]
[1764075201756,6.6223,135.96,135.94,2.98]
[1764075201949,0.04935481,135.96,135.94,3.02765453]
[1764075202957,0.04935481,135.96,135.95,62.0]
[1764075204261,0.04935481,135.96,135.95,64.98]
[1764075207152,128.2383,136.06,135.95,64.98]
[1764075207153,2.16,136.06,135.96,2.98]
[1764075207462,102.9077,136.1,136.02,2.98]
[1764075207662,6.6169,136.07,136.03,2.98]
[1764075208060,0.04942506,136.06,136.04,3.03455332]
[1764075208449,102.8933,136.12,136.04,3.03455332]
[1764075208754,102.8933,136.12,136.04,2.98]
[1764075208755,2.16,136.12,136.04,2.98]
[1764075209261,6.6157,136.1,136.05,2.98]
[1764075209464,0.05281512,136.09,136.07,2.98]
[1764075209663,8.7732,136.15,136.09,2.98]
[1764075209959,105.0328,136.15,136.06,2.98]
[1764075210264,8.7746,136.12,136.08,2.98]
[1764075210651,2.21579079,136.11,136.09,0.05132125]
[1764075211458,8.83089079,136.11,136.09,0.05132125]
[1764075213766,2.16,136.1,136.09,0.05132125]
[1764075219571,2.16,136.08,136.05,2.98]
[1764075219772,2.16,136.08,136.02,2.98]
[1764075220359,8.7766,136.08,136.02,2.98]
[1764075220558,0.04894913,136.06,136.04,3.03444917]
[1764075221367,2.20894913,136.06,136.04,0.05444917]
[1764075222468,0.04894913,136.06,136.04,3.03444917]
[1764075225076,2.16,136.05,136.04,0.05444917]
[1764075227682,6.66654913,136.06,136.04,2.99444917]
[1764075230781,6.66654913,136.06,136.05,62.0]
[1764075232387,6.66654913,136.06,136.05,64.94]
[1764075232982,0.04894913,136.06,136.05,64.94]
[1764075233478,0.04894913,136.06,136.05,2.94]
[1764075234980,0.04894913,136.06,136.04,2.99444917]
[1764075235992,2.20894913,136.06,136.04,0.05444917]
[1764075238392,2.16,136.05,136.04,0.05444917]
[1764075240696,8.7778,136.05,136.04,0.05444917]
[1764075243400,2.16,136.05,136.04,0.05444917]
[1764075244599,8.7778,136.05,136.04,0.05444917]
[1764075249198,6.66634913,136.06,136.04,3.25444917]
[1764075249401,2.20894913,136.06,136.04,3.25444917]
[1764075249701,8.82644913,136.06,136.04,0.05444917]
[1764075250906,8.82644913,136.06,136.04,3.25444917]
[1764075252807,2.16,136.1,136.05,3.2]
[1764075253005,2.16,136.1,136.07,3.2]
[1764075253312,6.6159,136.09,136.07,3.2]
[1764075253812,6.67178139,136.09,136.07,3.24939339]
[1764075254120,0.05588139,136.09,136.07,3.24939339]
[1764075254307,2.21588139,136.09,136.07,0.04939339]
[1764075254610,2.21588139,136.09,136.07,3.24939339]
[1764075255526,0.05588139,136.09,136.07,3.24939339]
[1764075255927,0.05588139,136.09,136.07,65.24939339]
[1764075256427,0.05588139,136.09,136.08,3.2]
[1764075256819,0.05588139,136.09,136.07,65.24939339]
[1764075257523,0.05588139,136.09,136.07,87.27922898]
[1764075258029,2.20588139,136.09,136.07,84.07922898]
[1764075258624,2.20588139,136.09,136.07,87.18922898]
[1764075258826,2.20588139,136.09,136.07,25.18922898]
[1764075259831,2.20588139,136.09,136.07,22.07922898]
[1764075260129,2.15,136.08,136.07,22.07922898]
[1764075260929,2.20588139,136.09,136.07,22.07922898]
[1764075262018,6.67178139,136.09,136.07,25.18922898]
[1764075262722,8.82178139,136.09,136.07,25.18922898]
[1764075262919,2.15,136.08,136.07,22.07922898]
[1764075263124,8.7664,136.08,136.07,22.07922898]
[1764075263524,8.7664,136.08,136.07,0.04939339]
[1764075264919,2.18494425,136.09,136.07,0.04939339]
[1764075264920,2.20588139,136.09,136.07,0.04939339]
[1764075265528,8.7664,136.08,136.07,0.04939339]
[1764075267333,6.6164,136.08,136.07,0.04939339]
[1764075268428,8.7664,136.08,136.07,0.04939339]
[1764075276742,6.67178139,136.09,136.07,3.15939339]
[1764075276939,0.05588139,136.09,136.07,3.15939339]
[1764075277244,0.05588139,136.09,136.08,3.11]
[1764075284545,0.05588139,136.09,136.08,25.25067063]
[1764075288750,6.6144,136.12,136.09,3.18]
[1764075289249,6.6152,136.11,136.09,3.18]
[1764075289449,8.7752,136.11,136.08,25.32067063]
[1764075289644,8.7752,136.11,136.08,3.18]
[1764075289847,8.82603009,136.11,136.08,3.18]
[1764075290150,6.66603009,136.11,136.08,3.18]
[1764075291942,0.05083009,136.11,136.08,3.18]
[1764075292652,0.05083009,136.11,136.08,9.7963]
[1764075293151,0.05083009,136.11,136.09,3.18]
[1764075294552,0.05083009,136.11,136.1,5.30906286]
[1764075296652,0.05083009,136.11,136.1,3.18]
[1764075300357,0.05083009,136.11,136.07,51.18995841]
[1764075300358,6.66573009,136.11,136.07,51.18995841]
[1764075300649,6.66573009,136.11,136.07,25.71681402]
[1764075300650,2.21083009,136.11,136.07,25.71681402]
[1764075300855,0.05083009,136.11,136.08,3.11]
[1764075301051,2.16,136.17,136.1,3.11]
[1764075301250,2.16,136.17,136.12,3.11]
[1764075301449,2.21,136.21,136.14,3.11]
[1764075301650,102.7892,136.26,136.16,3.11]
[1764075301854,2.21,136.24,136.18,3.11]
[1764075302052,2.21,136.2,136.15,3.11]
[1764075302243,2.21,136.2,136.16,0.04675331]
[1764075302552,2.21,136.17,136.16,0.04675331]
[1764075303859,8.822,136.18,136.16,0.04675331]
[1764075305854,2.21,136.17,136.16,0.04675331]
[1764075307053,0.05105798,136.19,136.16,3.15675331]
[1764075308563,0.05105798,136.19,136.17,3.11]
[1764075308761,0.05105798,136.19,136.18,3.11]
[1764075311454,2.21,136.23,136.18,3.11]
[1764075312356,6.6098,136.22,136.18,3.11]
[1764075312553,6.66605779,136.22,136.2,3.11]
[1764075313570,8.87605779,136.22,136.19,0.05488055]
[1764075313858,2.21,136.2,136.19,0.05488055]
[1764075314166,6.6102,136.21,136.19,3.16488055]
[1764075314365,2.26625779,136.22,136.19,3.16488055]
[1764075315062,8.87595779,136.22,136.19,3.16488055]
[1764075315263,2.21,136.21,136.19,0.05488055]
[1764075315455,8.8202,136.21,136.19,0.05488055]
[1764075315662,2.21,136.2,136.19,0.05488055]
[1764075316656,6.6102,136.21,136.19,0.05488055]
[1764075317458,0.05625779,136.22,136.19,2.95488055]
[1764075318868,2.2,136.21,136.19,0.05488055]
[1764075319061,8.86595779,136.22,136.19,3.00488055]